bitfinex/quotes_ETHUSD_20260302
["timestamp","ask_amount","ask_price","bid_price","bid_amount"]
[1772462135346,1.06166395,1953.9,1952.7,1.28027858]
[1772462135548,1.06166395,1953.9,1952.5,1.28036391]
[1772462135781,1.06166395,1953.9,1952.2,1.28060649]
[1772462136299,1.06166395,1953.9,1952.3,3.57826528]
[1772462136453,2.71741098,1953.8,1952.0,0.00153886]
[1772462136652,1.06166395,1953.2,1952.0,0.00153886]
[1772462136956,1.06089452,1953.0,1951.4,1.28113149]
[1772462137147,1.06089452,1952.8,1951.4,1.28113149]
[1772462138396,1.06089452,1952.8,1951.0,5.12606484]
[1772462138397,1.06089452,1952.8,1951.5,0.001]
[1772462138560,1.28034415,1952.6,1951.5,0.001]
[1772462138762,1.06089452,1952.5,1951.5,0.001]
[1772462140782,1.06089452,1952.3,1951.5,0.001]
[1772462141555,5.12190124,1952.5,1951.5,0.001]
[1772462141556,1.06089452,1952.8,1951.5,0.001]
[1772462142190,1.06089452,1952.8,1951.6,3.57826528]
[1772462142349,9.36967626,1953.8,1951.6,3.57826528]
[1772462142350,1.06243338,1954.0,1952.5,3.57826528]
[1772462142553,1.06243338,1954.0,1952.4,0.065536]
[1772462142554,0.00153886,1953.9,1952.9,3.57826528]
[1772462142756,0.00153886,1953.9,1953.0,1.28008192]
[1772462143285,2.632,1954.5,1953.0,1.28008192]
[1772462143451,2.632,1954.5,1953.1,0.065536]
[1772462143650,0.53498612,1955.0,1953.1,0.065536]
[1772462143651,1.28090388,1954.8,1953.1,0.065536]
[1772462143883,0.002,1954.8,1953.6,3.57826528]
[1772462144085,0.003,1955.4,1954.4,3.57826528]
[1772462144391,0.003,1955.4,1954.1,0.065536]
[1772462144593,0.003,1955.4,1954.5,0.065536]
[1772462144811,0.003,1955.4,1954.1,5.1171835]
[1772462144953,0.003,1955.4,1954.0,0.00153886]
[1772462144954,0.53044726,1955.2,1954.0,0.00153886]
[1772462145292,0.53044726,1955.2,1954.0,1.28094183]
[1772462146290,0.003,1955.4,1954.3,3.57826528]
[1772462146499,0.003,1955.4,1954.7,3.57826528]
[1772462146655,0.003,1955.4,1954.1,1.27936134]
[1772462146855,0.53344726,1955.4,1954.1,1.27936134]
[1772462147076,0.53044726,1955.1,1954.0,0.00153886]
[1772462147281,0.53044726,1955.1,1954.0,1.28096177]
[1772462147467,0.53044726,1955.1,1954.0,0.00153886]
[1772462147911,0.53044726,1955.1,1954.0,1.28091594]
[1772462148471,0.53344726,1955.4,1954.0,1.28096312]
[1772462148668,0.53044726,1955.2,1954.0,0.00153886]
[1772462149095,0.53044726,1955.2,1953.1,5.11986301]
[1772462149096,0.53044726,1955.2,1953.2,5.1197883]
[1772462149504,0.53044726,1955.2,1953.3,3.57826528]
[1772462149817,0.00153886,1955.0,1953.2,5.1197883]
[1772462150029,0.53121669,1955.0,1953.1,1.27995084]
[1772462150177,0.00153886,1955.0,1953.2,0.065536]
[1772462150499,0.00153886,1955.0,1953.7,3.57826528]
[1772462150723,0.003,1955.4,1953.8,1.34509378]
[1772462150920,0.003,1955.4,1953.8,1.27955778]
[1772462151123,0.003,1955.4,1954.0,0.00153886]
[1772462151622,0.003,1955.4,1953.8,1.27809664]
[1772462151828,0.00153886,1956.0,1954.9,3.57826528]
[1772462152024,0.52967783,1956.8,1955.3,3.57672642]
[1772462152025,1.80728166,1956.8,1955.3,3.57672642]
[1772462152335,5.11031435,1956.9,1954.7,0.45691973]
[1772462152336,0.47017524,1956.9,1954.7,0.45691973]
[1772462152501,0.47017524,1956.9,1954.8,0.065536]
[1772462152701,1.27759607,1956.8,1955.0,0.00153886]
[1772462152903,1.25202062,1956.8,1955.3,3.57826528]
[1772462153202,1.74771994,1956.9,1955.3,3.57826528]
[1772462153406,1.27901867,1957.0,1955.4,3.57826528]
[1772462153611,1.27902084,1957.0,1955.5,0.065536]
[1772462153917,1.27902084,1957.0,1955.0,0.00153886]
[1772462153918,1.27902084,1957.0,1955.1,0.065536]
[1772462154536,0.002,1955.4,1955.0,0.06707486]
[1772462154840,0.00153886,1957.0,1955.4,1.27851079]
[1772462155128,0.00153886,1957.0,1955.5,0.065536]
[1772462155721,0.00153886,1957.0,1955.7,0.065536]
[1772462156808,0.00153886,1957.0,1955.8,1.2782493]
[1772462157231,0.4717141,1957.0,1955.2,1.27857617]
[1772462157462,0.4717141,1957.0,1955.1,1.27865939]
[1772462157463,0.47017524,1956.9,1955.1,1.27865939]
[1772462157733,0.47017524,1956.3,1955.0,1.28028876]
[1772462157907,0.47017524,1956.3,1954.1,1.27936134]
[1772462158247,0.47017524,1955.9,1954.1,1.27936134]
[1772462158402,0.47017524,1955.8,1954.1,1.27936134]
[1772462158721,0.47017524,1955.7,1954.1,1.27936134]
[1772462158927,0.47017524,1955.5,1954.0,5.11921753]
[1772462159811,1.27838003,1955.6,1954.0,5.11921753]
[1772462160012,1.27835943,1955.7,1954.2,3.57826528]
[1772462160434,1.27967487,1956.0,1954.2,3.57826528]
[1772462160602,1.27968059,1956.0,1954.6,3.57826528]
[1772462160799,0.00153886,1956.0,1954.4,0.065536]
[1772462161002,0.4717141,1956.0,1954.3,1.27923041]
[1772462161801,0.4717141,1956.0,1954.4,0.065536]
[1772462162035,0.4717141,1956.0,1954.0,1.28092505]
[1772462162036,0.47017524,1955.4,1954.0,1.28092505]
[1772462162244,0.47017524,1955.4,1954.0,1.28096425]
[1772462162426,0.47017524,1955.4,1954.0,0.00153886]
[1772462162613,0.47017524,1955.1,1954.0,1.28096216]
[1772462162804,0.47017524,1955.1,1953.0,5.11589878]
[1772462162805,0.47017524,1954.7,1953.0,0.00153886]
[1772462163319,0.47017524,1954.2,1953.0,0.00153886]
[1772462164316,3.57826528,1954.7,1953.1,3.57826528]
[1772462164317,0.47017524,1954.7,1953.1,3.57826528]
[1772462164736,1.27890321,1954.8,1953.1,3.57826528]
[1772462164926,5.11561285,1954.9,1953.0,0.06707486]
[1772462165433,5.11561285,1954.9,1953.0,0.00153886]
[1772462165434,0.47017524,1954.8,1953.0,0.00153886]
[1772462165606,0.47017524,1954.8,1953.1,3.57826528]
[1772462166131,0.47017524,1954.8,1953.0,0.00153886]
[1772462166500,3.87236218,1955.0,1953.0,0.00153886]
[1772462166501,0.47017524,1954.6,1953.0,0.00153886]
[1772462166939,1.27883779,1954.9,1953.1,3.57826528]
[1772462167434,1.74901303,1954.9,1953.0,0.00153886]
[1772462167625,0.00153886,1955.0,1953.1,0.45691973]
[1772462167823,0.00153886,1955.0,1953.5,3.57826528]
[1772462167824,1.28035986,1955.0,1953.5,3.57826528]
[1772462168225,1.28035986,1955.0,1953.1,3.57826528]
[1772462168226,1.7505351,1955.0,1953.1,3.57826528]
[1772462168439,1.7505351,1955.0,1953.0,0.00153886]
[1772462168440,0.47017524,1954.9,1953.0,0.00153886]
[1772462168733,0.47017524,1954.9,1953.1,3.57826528]
[1772462168934,1.27890321,1954.8,1953.2,1.27995084]
[1772462169307,1.74906112,1954.9,1953.2,1.27995084]
[1772462169715,1.74906112,1954.9,1953.0,0.00153886]
[1772462169716,0.47017524,1954.5,1953.0,0.00153886]
[1772462169914,3.05817524,1954.4,1953.1,1.28000057]
[1772462170308,2.588,1954.4,1953.0,1.28158022]
[1772462170515,0.47017524,1954.3,1953.0,1.28158022]
[1772462170839,2.588,1954.4,1953.0,1.28158022]
[1772462171014,2.588,1954.4,1953.0,0.00153886]
[1772462171015,1.27923041,1954.3,1953.0,0.00153886]
[1772462171540,0.47017524,1954.2,1953.0,0.00153886]
[1772462171713,0.47017524,1953.9,1952.4,1.28042792]
[1772462173143,1.75117878,1954.0,1952.2,5.12190124]
[1772462173339,0.4717141,1954.0,1952.2,5.12190124]
[1772462173529,0.4717141,1954.0,1952.4,3.57826528]
[1772462173530,1.280966,1954.0,1952.4,3.57826528]
[1772462173728,1.280966,1954.0,1952.3,0.065536]
[1772462174329,0.48095247,1953.9,1952.1,5.12190124]
[1772462175012,1.27955778,1953.8,1952.1,5.12190124]
[1772462175322,1.76051025,1953.8,1952.1,5.12190124]
[1772462175516,0.48095247,1953.7,1952.0,5.1234401]
[1772462175716,1.27955778,1953.8,1952.0,5.1234401]
[1772462175717,0.48095247,1953.5,1952.0,5.1234401]
[1772462176527,0.48095247,1953.4,1952.0,5.1234401]
[1772462177142,0.48095247,1953.1,1952.0,0.00153886]
[1772462177343,0.48095247,1953.1,1951.6,1.2810002]
[1772462177541,0.48168183,1952.9,1951.6,1.2810002]
[1772462177847,0.48168183,1952.6,1951.5,1.2820132]
[1772462178931,0.48168183,1952.6,1951.5,1.28205215]
[1772462179132,9.49294711,1952.3,1951.5,0.001]
[1772462179336,0.48168183,1952.2,1951.5,0.001]
[1772462180043,1.28040973,1952.5,1951.5,0.001]
[1772462180445,1.76209156,1952.5,1951.5,0.001]
[1772462180644,1.28035613,1952.6,1951.5,0.001]
[1772462180850,2.566,1952.9,1951.5,0.001]
[1772462180851,1.28021302,1952.8,1951.5,0.001]
[1772462181215,2.566,1952.9,1951.5,0.001]
[1772462181420,3.84616482,1952.9,1951.5,0.001]
[1772462181622,2.566,1952.9,1951.5,3.57926528]
[1772462181821,3.84616113,1952.9,1951.5,0.001]
[1772462182946,4.32784296,1952.9,1951.5,0.001]
[1772462183548,3.84616113,1952.9,1951.5,0.001]
[1772462184356,3.84616113,1952.9,1951.2,0.001]
[1772462184357,0.48168183,1952.2,1951.2,0.001]
[1772462184853,0.48168183,1952.2,1951.0,0.00153886]
[1772462184854,0.48168183,1951.8,1951.0,0.00153886]
[1772462185021,1.28093456,1951.7,1951.0,0.00153886]
[1772462185225,2.547,1952.0,1951.3,0.001]
[1772462186650,3.82521302,1952.8,1951.3,0.001]
[1772462187225,4.30689485,1952.8,1951.3,0.001]
[1772462187754,0.48168183,1952.5,1951.3,0.001]
[1772462187958,0.48168183,1952.1,1951.0,0.00153886]
[1772462188853,2.542,1952.0,1951.0,0.00153886]
[1772462189055,0.48168183,1951.9,1951.0,0.00153886]
[1772462189262,1.28086894,1951.8,1950.0,1.28359014]
[1772462189432,1.76255077,1951.8,1950.0,1.28359014]
[1772462189634,5.433,1951.7,1950.0,1.28359014]
[1772462189834,4.05994711,1951.1,1950.0,1.28359014]
[1772462190056,2.539,1951.0,1950.0,1.28359014]
[1772462190769,2.539,1951.0,1950.0,0.00153886]
[1772462190951,2.539,1951.0,1949.2,5.13005974]
[1772462190952,4.05994711,1950.7,1949.2,5.13005974]
[1772462191270,2.539,1951.0,1949.1,1.28357746]
[1772462191271,2.539,1951.0,1949.1,0.001]
[1772462191272,1.28145983,1950.9,1949.1,0.001]
[1772462191875,0.48168183,1950.8,1949.1,0.001]
[1772462192031,5.91468183,1950.3,1949.1,0.001]
[1772462192463,3.57826528,1950.0,1949.1,0.001]
[1772462192670,0.48168183,1950.7,1949.1,0.001]
[1772462192891,5.91468183,1950.7,1949.1,0.001]
[1772462193043,0.48168183,1950.7,1949.1,0.001]
[1772462193359,3.81846625,1950.9,1949.1,0.45386923]
[1772462193535,3.81846544,1950.9,1949.1,0.45386923]
[1772462193731,3.81846236,1950.9,1949.1,0.45386923]
[1772462194028,0.00153886,1951.0,1949.4,0.45286923]
[1772462194228,0.00153886,1951.0,1949.8,0.45286923]
[1772462194867,0.00153886,1951.0,1949.5,0.45286923]
[1772462195166,0.00153886,1951.0,1949.7,1.28224855]
[1772462195673,3.44078808,1951.6,1949.8,0.45286923]
[1772462196034,0.48168183,1951.3,1949.1,0.001]
[1772462196368,0.48168183,1950.3,1949.1,0.001]
[1772462196543,0.065536,1951.1,1949.1,1.28363923]
[1772462196544,9.51160224,1950.0,1949.1,1.28363923]
[1772462196741,9.51160224,1950.0,1949.1,0.001]
[1772462196742,0.48168183,1949.8,1949.1,0.001]
[1772462196928,2.56969019,1949.6,1949.1,0.001]
[1772462197252,1.76389508,1949.8,1949.1,0.001]
[1772462197570,0.48168183,1949.7,1949.1,0.001]
[1772462197769,0.48168183,1949.4,1948.8,0.001]
[1772462197953,2.56969019,1949.5,1948.3,1.43587552]
[1772462197954,0.48168183,1949.1,1948.3,1.43587552]
[1772462198152,0.48168183,1949.1,1948.3,0.1527477]
[1772462198153,2.56969019,1948.8,1948.3,0.1527477]
[1772462198367,7.97,1949.0,1948.3,1.43591294]
[1772462198579,2.537,1949.0,1948.3,1.43591294]
[1772462198735,2.537,1949.0,1948.3,0.1527477]
[1772462198935,2.537,1949.0,1948.3,1.43591019]
[1772462199240,2.537,1949.0,1948.3,0.1527477]
[1772462199241,0.48168183,1948.9,1948.3,0.1527477]
[1772462199441,6.38942912,1949.0,1948.0,1.65286344]
[1772462199442,2.56969019,1948.4,1948.0,1.65286344]
[1772462199750,0.48168183,1948.6,1948.0,1.65286344]
[1772462199751,3.81973893,1949.0,1948.0,2.93623059]
[1772462199941,3.81973893,1949.0,1948.0,1.65286344]
[1772462200146,0.48168183,1948.8,1948.0,1.65286344]
[1772462200333,0.48168183,1948.8,1947.4,0.001]
[1772462200535,0.48168183,1948.8,1946.5,5.13816772]
[1772462200536,0.48168183,1947.5,1946.5,0.001]
[1772462200847,2.532,1947.4,1946.6,0.002]
[1772462201043,2.532,1947.4,1946.5,0.002]
[1772462201275,2.53,1947.4,1946.4,0.001]
[1772462201771,8.21309778,1948.0,1946.5,2.56969019]
[1772462201772,1.28494181,1948.0,1946.5,2.56969019]
[1772462201984,1.28494181,1948.0,1946.4,0.001]
[1772462201985,0.48168183,1947.9,1946.4,0.001]
[1772462202274,3.854632,1948.0,1946.4,0.001]
[1772462202275,0.48168183,1947.4,1946.4,0.001]
[1772462202577,1.28494181,1948.0,1946.4,0.001]
[1772462202578,1.76662364,1948.0,1946.4,0.001]
[1772462203045,0.48322069,1948.0,1946.6,0.065536]
[1772462203265,0.00153886,1948.0,1946.8,2.56969019]
[1772462203473,0.00153886,1948.0,1946.7,1.28422458]
[1772462203782,1.28290211,1948.8,1947.1,2.56969019]
[1772462203954,1.2842973,1949.0,1947.5,2.56969019]
[1772462204159,1.28426206,1949.0,1947.5,2.56969019]
[1772462204467,2.56969019,1948.7,1947.0,0.00153886]
[1772462204666,1.28426206,1949.0,1947.0,0.00153886]
[1772462204667,4.33563408,1949.0,1947.0,0.00153886]
[1772462204889,0.00153886,1949.0,1947.4,3.02255942]
[1772462205094,1.28277489,1948.9,1947.4,3.02255942]
[1772462205254,0.00153886,1949.0,1947.5,1.28369704]
[1772462206087,0.00153886,1949.0,1948.0,2.56969019]
[1772462206258,0.00153886,1949.0,1947.8,0.45286923]
[1772462206592,1.28231432,1949.6,1948.0,2.56969019]
[1772462206791,1.53822519,1950.3,1947.5,1.28369704]
[1772462206792,1.28360613,1950.0,1948.4,2.56969019]
[1772462206966,0.00153886,1950.0,1948.4,2.56969019]
[1772462207168,1.2835936,1950.0,1948.4,2.56969019]
[1772462207490,0.00153886,1950.0,1948.5,1.28303823]
[1772462208487,0.00153886,1950.0,1948.6,0.51737983]
[1772462208897,0.00153886,1950.0,1948.5,1.28303823]
[1772462209193,0.00153886,1950.0,1948.1,1.28330167]
[1772462209194,2.56969019,1949.5,1948.1,1.28330167]
[1772462209356,1.28251167,1949.3,1948.0,0.00153886]
[1772462209790,2.56969019,1949.8,1948.0,0.00153886]
[1772462209964,1.28224855,1949.8,1948.0,0.00153886]
[1772462210155,1.28214008,1949.9,1948.1,3.02153402]
[1772462210362,1.28214008,1949.9,1948.4,2.56969019]
[1772462210563,1.28214008,1949.9,1948.2,2.63797216]
[1772462210810,1.28214008,1949.9,1948.1,2.56969019]
[1772462211103,1.28214008,1949.9,1948.0,2.57122905]
[1772462211104,0.45198801,1948.8,1948.0,2.57122905]
[1772462211403,1.7348801,1948.8,1948.0,1.28335943]
[1772462211971,1.7348801,1948.8,1948.0,2.57122905]
[1772462212176,4.2538801,1948.8,1947.5,1.28369704]
[1772462212401,2.56969019,1948.7,1947.5,1.28369704]
[1772462212576,0.45198801,1948.6,1947.6,2.57122905]
[1772462212776,5.13128266,1948.9,1947.6,2.57122905]
[1772462212777,1.28279068,1948.9,1947.6,2.57122905]
[1772462213002,1.28426406,1949.0,1947.6,2.57122905]
[1772462213203,0.00153886,1949.0,1947.6,2.57122905]
[1772462213411,0.00153886,1949.0,1947.7,1.28356523]
[1772462213702,0.45198801,1948.9,1947.6,2.57122905]
[1772462213902,3.0216782,1948.7,1947.6,3.85483547]
[1772462214100,0.45198801,1948.7,1947.6,3.8548565]
[1772462214308,0.45198801,1948.7,1947.5,5.13452454]
[1772462214309,0.45198801,1948.5,1947.1,5.13575764]
[1772462214542,3.0216782,1948.3,1947.1,1.28396076]
[1772462214717,0.45198801,1947.6,1947.0,0.00153886]
[1772462215003,0.45198801,1947.6,1947.0,2.57276791]
[1772462215164,0.45198801,1947.6,1947.0,0.00153886]
[1772462215365,0.45198801,1947.6,1946.4,5.13868949]
[1772462215366,3.0216782,1947.4,1946.4,0.001]
[1772462215692,0.45198801,1947.3,1946.4,2.57222905]
[1772462215888,0.45198801,1947.3,1946.4,2.5466536]
[1772462216667,0.45198801,1947.3,1946.0,0.00153886]
[1772462217003,1.28369704,1947.5,1946.0,0.00153886]
[1772462217004,2.56969019,1946.8,1946.0,0.00153886]
[1772462217301,2.516,1946.8,1946.2,2.5476536]
[1772462217501,1.28422458,1946.7,1946.2,2.5476536]
[1772462217803,1.73601471,1947.0,1946.2,2.5476536]
[1772462218322,1.73601471,1947.0,1946.2,3.83220141]
[1772462218323,2.96698801,1947.0,1946.2,3.83220141]
[1772462218526,0.45198801,1947.0,1946.2,3.83220141]
[1772462218892,3.79900543,1947.1,1946.2,3.83220141]
[1772462218893,4.07547551,1948.6,1948.5,414.49440866]
[1772462219228,0.45198801,1948.4,1946.2,2.5476536]
[1772462219432,0.45198801,1948.1,1946.2,2.5476536]
[1772462219629,0.45198801,1947.1,1946.2,2.5476536]
[1772462219803,0.45198801,1947.1,1946.2,3.8321811]
[1772462220006,1.28336755,1948.0,1946.2,8.44887129]
[1772462220007,0.45198801,1947.6,1946.2,8.44887129]
[1772462220219,10.21616041,1948.1,1946.5,2.56969019]
[1772462220220,0.45198801,1948.1,1946.5,2.56969019]
[1772462220419,5.13177087,1948.9,1946.3,2.5466536]
[1772462220420,0.23109749,1948.5,1946.8,2.56969019]
[1772462220720,0.23109749,1948.5,1946.9,2.5466536]
[1772462220721,1.51414661,1948.5,1946.9,2.5466536]
[1772462220913,0.00153886,1948.0,1946.9,2.5466536]
[1772462221123,0.00153886,1948.0,1947.1,2.56969019]
[1772462221331,0.19532559,1948.5,1947.1,2.56969019]
[1772462221535,0.19532559,1948.5,1947.3,1.28382889]
[1772462221711,0.19532559,1948.5,1947.5,2.56969019]
[1772462222061,0.16042148,1948.5,1947.6,2.54511474]
[1772462222210,0.00153886,1949.0,1947.6,2.54511474]
[1772462222600,5.12874899,1949.8,1947.5,2.56969019]
[1772462222601,0.002,1949.9,1948.4,2.56969019]
[1772462222930,0.002,1949.9,1947.8,0.45184383]
[1772462222931,0.45198801,1949.7,1948.1,2.047]
[1772462223127,0.45198801,1949.7,1948.0,0.00153886]
[1772462223316,4.02365907,1949.9,1948.3,2.56969019]
[1772462223650,2.56969019,1949.7,1948.2,1.2832358]
[1772462223936,2.56969019,1949.1,1948.3,2.54511474]
[1772462224137,0.45198801,1949.8,1948.4,2.54511474]
[1772462224300,4.02365803,1949.9,1948.2,5.11480493]
[1772462224497,3.1935232,1949.9,1948.3,4.61569019]
[1772462224729,3.1935232,1949.9,1948.4,2.54511474]
[1772462224934,0.002,1949.9,1948.4,2.54511474]
[1772462225118,0.002,1949.9,1948.7,2.56969019]
[1772462225532,0.002,1949.9,1948.9,1.28277489]
[1772462225937,0.002,1950.2,1948.9,1.28277489]
[1772462225938,0.002,1950.2,1949.0,3.02153402]
[1772462226123,1.28296266,1951.0,1949.1,0.45184383]
[1772462226124,1.28297138,1951.0,1949.1,0.45184383]
[1772462226307,0.00153886,1951.0,1949.2,0.45184383]
[1772462226506,0.00153886,1951.0,1949.4,3.02153402]
[1772462226807,1.28294268,1951.0,1949.1,2.54311474]
[1772462227003,1.28294268,1951.0,1949.2,2.044]
[1772462227205,1.28294268,1951.0,1949.1,2.54311474]
[1772462227206,2.56969019,1950.3,1949.1,2.54311474]
[1772462227405,2.56969019,1950.3,1949.0,0.00153886]
[1772462227406,2.56969019,1950.0,1949.0,0.00153886]
[1772462227707,1.28211703,1949.9,1949.0,2.5446536]
[1772462228213,1.28209531,1950.0,1949.0,3.82736212]
[1772462228413,1.2819198,1950.2,1949.0,3.82736212]
[1772462228617,1.2819198,1950.2,1949.1,2.56969019]
[1772462228618,0.002,1949.8,1949.1,2.56969019]
[1772462228825,0.002,1949.8,1948.3,2.56969019]
[1772462229127,0.45198801,1949.7,1948.1,1.28330167]
[1772462229338,0.45198801,1949.7,1948.4,2.56969019]
[1772462229518,1.28418278,1949.8,1948.4,2.56969019]
[1772462229707,1.28418278,1949.8,1948.1,3.8529441]
[1772462229708,0.45198801,1949.7,1948.1,3.8529441]
[1772462229910,6.71718278,1949.8,1948.0,0.00153886]
[1772462229911,0.45198801,1949.4,1948.0,0.00153886]
[1772462230139,0.45198801,1949.4,1948.1,2.56969019]
[1772462230335,0.45198801,1949.4,1948.0,0.00153886]
[1772462230561,0.45198801,1949.4,1948.0,1.28490346]
[1772462230707,0.45198801,1949.4,1948.1,2.56969019]
[1772462231203,0.065536,1949.7,1948.2,2.56969019]
[1772462231622,5.12925728,1949.7,1948.3,1.28316994]
[1772462231823,1.28418426,1949.8,1948.8,2.56969019]
[1772462232058,0.002,1949.8,1948.8,2.56969019]
[1772462232250,0.002,1949.8,1949.1,2.56969019]
[1772462232549,0.002,1949.8,1948.5,2.63797216]
[1772462232550,1.28419177,1949.8,1948.5,2.56969019]
[1772462232923,1.28419177,1949.8,1948.3,1.28316994]
[1772462233251,1.28419177,1949.8,1948.2,7.70236996]
[1772462233252,7.70437187,1949.8,1948.2,3.85287387]
[1772462233681,6.56966509,1949.7,1948.0,2.03953886]
[1772462233830,6.56966509,1949.7,1948.0,1.28490329]
[1772462233831,6.4201801,1949.5,1948.0,1.28490329]
[1772462234030,11.8531801,1949.5,1948.0,1.28489349]
[1772462234234,11.8531801,1949.5,1948.0,0.00153886]
[1772462234777,11.8531801,1949.5,1948.0,2.57122905]
[1772462234778,6.4201801,1949.5,1948.0,2.57122905]
[1772462234959,6.71719177,1949.8,1948.0,0.00153886]
[1772462234960,0.14948499,1949.1,1948.0,0.00153886]
[1772462235160,0.065536,1949.4,1948.0,1.28490575]
[1772462235461,0.14948499,1949.5,1948.0,1.28490575]
[1772462235653,1.28238009,1949.5,1948.2,2.56969019]
[1772462236277,1.28238009,1949.5,1948.0,0.00153886]
[1772462236278,6.4201801,1949.3,1948.0,0.00153886]
[1772462236771,6.56966509,1949.1,1948.0,0.00153886]
[1772462237146,6.56966509,1949.1,1947.7,0.001]
[1772462237282,6.56966509,1948.9,1947.7,0.001]
[1772462237489,3.03432477,1948.8,1947.7,0.001]
[1772462237674,0.00153886,1949.0,1947.7,0.001]
[1772462237860,6.45058128,1948.8,1947.7,0.001]
[1772462238047,9.33586415,1948.7,1947.7,0.001]
[1772462238248,6.30109629,1948.7,1947.7,0.001]
[1772462238754,3.03634492,1948.6,1947.7,0.001]
[1772462238955,3.03634492,1948.6,1946.7,5.13689142]
[1772462238956,3.03634492,1948.6,1946.1,6.22384574]
[1772462238957,2.56969019,1948.1,1946.1,6.22384574]
[1772462239151,6.45058128,1948.3,1947.0,2.57122905]
[1772462239152,6.30109629,1948.3,1947.0,2.57122905]
[1772462239459,6.30109629,1948.3,1947.0,3.85524371]
[1772462239808,0.14948499,1948.7,1947.0,3.85524371]
[1772462239809,6.45058128,1948.4,1947.0,0.00153886]
[1772462240081,6.30109629,1947.9,1946.3,5.13789556]
[1772462240282,6.30109629,1947.9,1946.2,1.28553732]
[1772462240488,0.065536,1948.3,1946.7,2.56969019]
[1772462240647,6.30109629,1948.4,1947.0,2.56969019]
[1772462241257,1.28303823,1948.5,1947.3,2.56969019]
[1772462241484,1.28303823,1948.5,1946.6,2.03]
[1772462241485,0.00153886,1948.0,1947.6,2.56969019]
[1772462241692,0.00153886,1949.0,1948.0,1.28336755]
[1772462241890,0.00153886,1949.0,1948.2,2.56969019]
[1772462242255,0.00153886,1949.0,1947.9,5.13347022]
[1772462242256,0.00153886,1949.0,1947.8,3.31244813]
[1772462242508,0.00153886,1949.0,1948.1,2.56969019]
[1772462242684,0.00153886,1949.0,1948.4,2.56969019]
[1772462242990,5.12978352,1949.6,1947.9,6.22384574]
[1772462242991,0.002,1949.8,1948.7,2.56969019]
[1772462243193,0.002,1949.8,1949.0,2.56969019]
[1772462243358,1.28419213,1949.8,1948.3,8.79353593]
[1772462243689,0.002,1949.8,1948.3,1.28312444]
[1772462243985,0.002,1949.8,1948.3,3.85281463]
[1772462244152,0.002,1949.8,1948.3,1.28312444]
[1772462244353,0.002,1949.8,1948.3,2.56969019]
[1772462244354,6.30309629,1949.8,1948.3,2.56969019]
[1772462244556,6.30309629,1949.8,1948.1,1.28326858]
[1772462244777,8.87078648,1949.0,1947.9,13.8886745]
[1772462245062,6.30263515,1949.0,1947.9,13.8886745]
[1772462245559,12.05586883,1948.9,1947.2,1.28389482]
[1772462245779,12.05586883,1948.9,1947.1,7.70639142]
[1772462245780,1.28284072,1948.8,1947.1,7.70639142]
[1772462245981,1.28284072,1948.8,1947.2,13.8886745]
[1772462246295,11.43245917,1948.9,1947.7,2.56969019]
[1772462246296,1.28280949,1948.9,1947.7,2.56969019]
[1772462246695,1.28280949,1948.9,1947.8,13.8886745]
[1772462246895,1.28280949,1948.9,1947.3,13.8886745]
[1772462247189,1.28280949,1948.9,1947.4,4.59869019]
[1772462247414,5.28058458,1949.3,1947.4,4.59869019]
[1772462247415,0.002,1949.8,1947.8,6.22384574]
[1772462247698,7.58334484,1949.7,1948.0,1.28336755]
[1772462247864,3.0402433,1949.6,1948.0,1.28336755]
[1772462248062,3.0402433,1949.6,1947.5,5.13478263]
[1772462248063,0.14948499,1949.3,1947.7,2.029]
[1772462248264,6.30109629,1949.1,1948.0,0.00153886]
[1772462248493,3.04026644,1949.0,1948.0,0.00153886]
[1772462248992,0.065536,1949.4,1948.0,0.00153886]
[1772462249196,3.04306487,1949.3,1948.0,0.00153886]
[1772462249396,3.04306487,1949.3,1948.0,2.57122905]
[1772462249563,0.065536,1949.5,1948.0,0.00153886]
[1772462249767,10.21883415,1949.3,1948.0,0.00153886]
[1772462249967,7.97869019,1949.0,1948.0,0.00153886]
[1772462250177,5.409,1948.8,1948.0,0.00153886]
[1772462251069,5.409,1949.2,1948.0,0.00153886]
[1772462251373,5.409,1949.0,1948.0,0.00153886]
[1772462251579,5.409,1948.8,1948.0,0.00153886]
[1772462251801,1.28290655,1948.7,1948.0,0.00153886]
[1772462253084,1.28290655,1948.7,1947.2,7.50770133]
[1772462253392,5.409,1948.6,1947.2,7.50770133]
[1772462253701,1.28316994,1948.3,1947.2,7.50770133]
[1772462254278,1.28316994,1948.3,1947.2,1.28385559]
[1772462254279,6.69216994,1948.3,1947.2,1.28385559]
[1772462254481,6.69216994,1948.3,1947.1,0.001]
[1772462254680,5.409,1948.1,1947.1,0.001]
[1772462255206,1.28316994,1948.3,1947.1,1.2849509]
[1772462255397,1.28316994,1948.3,1947.1,0.001]
[1772462256123,6.69216994,1948.3,1947.1,0.001]
[1772462256446,1.28297239,1948.6,1947.1,6.22484574]
[1772462256735,1.28297239,1948.6,1947.3,8.79503914]
[1772462256908,3.05033611,1948.5,1947.1,0.001]
[1772462257112,5.409,1948.4,1947.1,0.001]
[1772462257307,1.43245738,1948.6,1947.1,0.001]
[1772462257308,5.409,1948.2,1947.1,0.001]
[1772462257837,6.69230167,1948.1,1947.1,0.001]
[1772462258018,6.69197239,1948.7,1947.2,6.22384574]
[1772462258187,3.05627931,1948.6,1947.2,6.22384574]
[1772462258700,3.05627931,1948.6,1947.2,2.012]
[1772462259027,5.409,1948.4,1947.2,2.012]
[1772462259229,5.409,1948.2,1947.2,2.012]
[1772462259788,1.28297239,1948.7,1947.3,1.28382889]
[1772462260032,1.28297239,1948.7,1947.3,7.50767463]
[1772462260214,5.409,1948.6,1947.3,7.50767463]
[1772462260523,3.05650907,1948.5,1947.2,1.28384839]
[1772462260886,3.05650907,1948.5,1947.1,3.2929094]
[1772462261317,5.409,1948.6,1947.4,6.22384574]
[1772462261527,0.002,1948.8,1947.8,6.22384574]
[1772462261721,0.00153886,1949.0,1948.2,6.22384574]
[1772462261931,0.00153886,1949.0,1948.3,9.51501568]
[1772462262090,0.00153886,1949.0,1948.4,6.22384574]
[1772462262293,0.002,1949.8,1948.4,6.22384574]
[1772462262503,0.002,1949.8,1948.3,3.29116994]
[1772462262504,0.002,1949.8,1948.6,6.22384574]
[1772462262806,0.002,1949.8,1948.3,1.28316994]
[1772462262807,5.411,1949.8,1948.3,1.28316994]
[1772462263003,3.05514708,1949.7,1948.7,2.007]
[1772462263205,3.05514708,1949.7,1948.1,1.28330167]
[1772462263206,6.45058128,1949.6,1948.1,1.28330167]
[1772462263522,5.409,1949.4,1948.1,1.28330167]